bitfinex-derivatives/quotes_BTCF0:USTF0_20250129
["timestamp","ask_amount","ask_price","bid_price","bid_amount"]
[1738154586212,0.50612053,102260.0,102250.0,0.26533307]
[1738154586407,0.50612053,102260.0,102250.0,0.39743307]
[1738154587011,0.50612053,102260.0,102250.0,0.48915359]
[1738154587915,0.36084167,102260.0,102250.0,0.48915359]
[1738154588113,0.01104425,102260.0,102250.0,0.48915359]
[1738154588609,0.20671125,102260.0,102250.0,0.48915359]
[1738154590609,0.20671125,102260.0,102250.0,0.39743307]
[1738154590804,0.56751125,102260.0,102250.0,0.39352582]
[1738154591315,0.56751125,102260.0,102250.0,0.19783982]
[1738154591514,0.56751125,102260.0,102250.0,0.15523982]
[1738154593210,0.56751125,102260.0,102250.0,0.44264634]
[1738154593407,0.20671125,102260.0,102250.0,0.44264634]
[1738154593612,0.19570867,102260.0,102250.0,0.52434859]
[1738154593816,4.167e-05,102260.0,102250.0,0.52434859]
[1738154594209,0.3608,102270.0,102260.0,0.195667]
[1738154594407,0.3608,102270.0,102260.0,0.51738752]
[1738154594609,0.70186399,102280.0,102270.0,0.195648]
[1738154594811,0.70186399,102280.0,102270.0,0.61286852]
[1738154598121,0.70186399,102280.0,102270.0,0.61586852]
[1738154598317,0.70186399,102280.0,102270.0,0.61686852]
[1738154598518,0.14542499,102280.0,102270.0,0.97766852]
[1738154598714,0.14542499,102280.0,102270.0,1.06938904]
[1738154599017,0.5674425,102290.0,102270.0,0.87374104]
[1738154599219,0.0110295,102290.0,102280.0,0.28734952]
[1738154599517,0.87584082,102300.0,102290.0,0.19561]
[1738154599821,0.87584082,102300.0,102290.0,0.48241]
[1738154601321,0.87884082,102300.0,102290.0,0.48241]
[1738154601821,0.88692658,102300.0,102290.0,0.48241]
[1738154602212,0.56748176,102300.0,102290.0,0.48241]
[1738154602822,0.65920228,102300.0,102290.0,0.2]
[1738154603119,0.8422228,102300.0,102290.0,0.2]
[1738154603326,0.79650228,102300.0,102290.0,0.2]
[1738154603921,0.56748176,102300.0,102290.0,0.28781317]
[1738154604220,0.56748176,102300.0,102290.0,0.48342317]
[1738154604413,0.20668176,102300.0,102290.0,0.57002317]
[1738154605019,0.56748176,102300.0,102290.0,0.57002317]
[1738154605517,0.68377507,102300.0,102290.0,0.57002317]
[1738154605917,0.32297507,102300.0,102290.0,0.57002317]
[1738154606526,0.68377507,102300.0,102290.0,0.57002317]
[1738154606826,0.32297507,102300.0,102290.0,0.57002317]
[1738154607521,0.68377507,102300.0,102290.0,0.57002317]
[1738154611022,0.56748176,102300.0,102290.0,0.57002317]
[1738154611527,0.40983913,102310.0,102290.0,0.57002317]
[1738154611528,0.36094613,102310.0,102290.0,0.37441317]
[1738154611737,0.20652299,102310.0,102300.0,0.33351152]
[1738154612023,0.00014613,102310.0,102300.0,0.98603204]
[1738154612420,0.00014613,102310.0,102300.0,0.98212479]
[1738154612619,0.00014613,102310.0,102300.0,1.08836815]
[1738154613521,0.00114613,102310.0,102300.0,1.08836815]
[1738154614232,0.00014613,102310.0,102300.0,1.08836815]
[1738154614435,0.00114613,102310.0,102300.0,1.08836815]
[1738154614631,0.00414613,102310.0,102300.0,1.08836815]
[1738154614832,0.00414613,102310.0,102300.0,1.10304815]
[1738154620338,0.01534483,102310.0,102300.0,0.74224815]
[1738154620538,0.00414613,102310.0,102300.0,0.74224815]
[1738154621538,0.00414613,102310.0,102300.0,1.10304815]
[1738154622632,0.556339,102330.0,102300.0,0.90745715]
[1738154622832,0.556339,102330.0,102320.0,0.28727352]
[1738154623033,0.567575,102330.0,102320.0,0.49727352]
[1738154623230,0.3608,102330.0,102320.0,0.49727352]
[1738154623435,0.80841631,102340.0,102330.0,0.195533]
[1738154623637,0.80841631,102340.0,102330.0,0.49725352]
[1738154623939,0.44761631,102340.0,102330.0,0.49725352]
[1738154624142,0.80841631,102340.0,102330.0,0.49725352]
[1738154624442,0.44761631,102340.0,102330.0,0.49334617]
[1738154624742,0.44961631,102340.0,102330.0,0.49334617]
[1738154625928,0.34410002,102340.0,102330.0,0.49334617]
[1738154626725,0.35010002,102340.0,102330.0,0.49334617]
[1738154627238,0.71090002,102340.0,102330.0,0.49334617]
[1738154627442,0.35010002,102340.0,102330.0,0.49334617]
[1738154628434,0.71090002,102340.0,102330.0,0.49334617]
[1738154632545,0.80262054,102340.0,102330.0,0.21]
[1738154632944,0.80262054,102340.0,102330.0,0.19753634]
[1738154633147,0.80262054,102340.0,102330.0,0.03250589]
[1738154633346,2.10709754,102340.0,102320.0,0.00014613]
[1738154633541,0.556333,102330.0,102320.0,0.21014613]
[1738154633845,0.64805352,102330.0,102320.0,0.21014613]
[1738154635348,0.54524104,102330.0,102300.0,0.00146605]
[1738154635546,1.00889252,102310.0,102300.0,0.12146605]
[1738154635846,1.00889252,102310.0,102300.0,0.00146605]
[1738154636550,1.05379252,102310.0,102300.0,0.00146605]
[1738154637148,1.05379252,102310.0,102300.0,0.00446605]
[1738154637552,1.05379252,102310.0,102300.0,0.00546605]
[1738154638441,1.09689252,102310.0,102300.0,0.00546605]
[1738154638644,1.24217138,102310.0,102300.0,0.00546605]
[1738154639648,1.24217138,102310.0,102300.0,0.00347975]
[1738154639849,1.25303745,102310.0,102300.0,0.00347975]
[1738154640040,1.25303745,102310.0,102300.0,0.19347975]
[1738154640842,1.36915684,102310.0,102300.0,0.19347975]
[1738154643753,1.27743632,102310.0,102300.0,0.19347975]
[1738154645047,1.27743632,102310.0,102300.0,0.1895724]
[1738154645654,1.23433632,102310.0,102300.0,0.28129292]
[1738154645956,1.23433632,102310.0,102300.0,0.32909292]
[1738154647352,0.97293807,102310.0,102300.0,0.32909292]
[1738154647556,0.92803807,102310.0,102300.0,0.32909292]
[1738154649356,0.92803807,102310.0,102300.0,0.52468392]
[1738154649553,0.37166607,102310.0,102300.0,0.61640444]
[1738154649761,0.62234438,102320.0,102310.0,0.195572]
[1738154650060,0.26154438,102320.0,102310.0,0.88709252]
[1738154650451,0.11626552,102320.0,102310.0,0.88709252]
[1738154653861,0.11626552,102320.0,102310.0,0.88318527]
[1738154654255,0.00014613,102320.0,102310.0,0.88318527]
[1738154654755,0.3608,102330.0,102320.0,0.195553]
[1738154654961,0.556322,102340.0,102330.0,0.195534]
[1738154655259,0.556322,102340.0,102330.0,0.55485452]
[1738154655561,0.56731141,102340.0,102330.0,0.55485452]
[1738154656563,0.57331141,102340.0,102330.0,0.55585452]
[1738154656956,0.006,102340.0,102330.0,1.00837504]
[1738154657347,0.008,102340.0,102330.0,1.00837504]
[1738154659859,0.20602196,102350.0,102340.0,0.195514]
[1738154660067,0.20602196,102350.0,102340.0,0.53253452]
[1738154660458,0.20602196,102350.0,102340.0,0.58293452]
[1738154661666,0.57182196,102350.0,102340.0,0.58393452]
[1738154662366,0.56682196,102350.0,102340.0,0.58293452]
[1738154662666,0.20065013,102350.0,102340.0,0.58293452]
[1738154662957,0.19565013,102350.0,102340.0,0.58293452]
[1738154663150,0.00014613,102350.0,102340.0,0.58393452]
[1738154663758,0.00314613,102350.0,102340.0,0.58393452]
[1738154663962,0.00314613,102350.0,102340.0,0.94473452]
[1738154664567,0.75939736,102370.0,102360.0,0.195476]
[1738154664864,0.76976703,102370.0,102360.0,0.405476]
[1738154665267,0.76976703,102370.0,102360.0,0.54639652]
[1738154665864,0.40896703,102370.0,102360.0,0.54639652]
[1738154666168,0.21350703,102370.0,102360.0,0.68200969]
[1738154667053,0.21350703,102370.0,102360.0,1.04280969]
[1738154667452,0.01036967,102370.0,102360.0,1.04280969]
[1738154667667,0.55638913,102380.0,102360.0,0.85124104]
[1738154667868,0.55638913,102380.0,102370.0,0.28717752]
[1738154668069,0.55638913,102380.0,102370.0,0.55687752]
[1738154668663,0.01043844,102380.0,102370.0,0.55687752]
[1738154668861,0.01343844,102380.0,102370.0,0.55687752]
[1738154670365,0.20887644,102380.0,102370.0,0.55687752]
[1738154670565,0.01343844,102380.0,102370.0,0.55687752]
[1738154670869,0.20887644,102380.0,102370.0,0.55687752]
[1738154671570,0.56967644,102380.0,102370.0,0.50717752]
[1738154672070,0.20887644,102380.0,102370.0,0.50717752]
[1738154673073,0.20887644,102380.0,102370.0,0.55597752]
[1738154673371,0.01343844,102380.0,102370.0,0.55597752]
[1738154673957,0.00314613,102380.0,102370.0,0.55597752]
[1738154674962,0.00314613,102380.0,102370.0,0.55207027]
[1738154676376,0.19858413,102380.0,102370.0,0.55207027]
[1738154676868,0.00314613,102380.0,102370.0,0.55207027]
[1738154677073,0.00314613,102380.0,102370.0,0.91287027]
[1738154678875,0.00314613,102380.0,102370.0,1.01991237]
[1738154684380,0.00314613,102380.0,102370.0,1.11759246]
[1738154686378,0.00314613,102380.0,102370.0,0.65911237]
[1738154686575,0.55938413,102380.0,102370.0,0.50327027]
[1738154686972,0.55938413,102380.0,102370.0,0.50717752]
[1738154687573,0.60668413,102380.0,102370.0,0.50717752]
[1738154687770,0.60668413,102380.0,102370.0,0.415457]
[1738154688079,0.69840465,102380.0,102370.0,0.22]
[1738154688688,0.60668413,102380.0,102370.0,0.22]
[1738154690877,0.78085009,102380.0,102370.0,0.22]
[1738154691079,0.78085009,102380.0,102370.0,0.07338667]
[1738154692385,0.87257061,102380.0,102370.0,0.06209441]
[1738154693173,0.67713261,102380.0,102350.0,0.19563713]
[1738154693380,0.556276,102360.0,102350.0,0.49735765]
[1738154693779,0.602476,102360.0,102350.0,0.49735765]
[1738154695189,0.86409003,102360.0,102350.0,0.4934504]
[1738154695487,0.86409003,102360.0,102350.0,0.4984504]
[1738154696381,0.81789003,102360.0,102350.0,0.4984504]
[1738154696784,0.62241403,102360.0,102350.0,0.5463504]
[1738154697189,0.81789003,102360.0,102350.0,0.5463504]
[1738154697692,0.39893635,102360.0,102350.0,0.5463504]
[1738154699683,0.28266345,102360.0,102350.0,0.5463504]
[1738154700794,0.64346345,102360.0,102350.0,0.40672988]
[1738154701090,0.69336345,102360.0,102350.0,0.40672988]
[1738154701486,0.69336345,102360.0,102350.0,0.4984504]
[1738154703290,0.69336345,102360.0,102350.0,0.30672052]
[1738154703492,0.78508397,102360.0,102350.0,0.215]
[1738154703790,0.87680449,102360.0,102350.0,0.215]
[1738154703993,0.87680449,102360.0,102350.0,0.0292]
[1738154704195,0.87680449,102360.0,102350.0,0.005]
[1738154704495,0.78508397,102360.0,102350.0,0.005]
[1738154705494,0.87680449,102360.0,102350.0,0.005]
[1738154705793,0.963783,102360.0,102350.0,0.005]
[1738154705988,0.87206248,102360.0,102350.0,0.005]
[1738154706189,0.963783,102360.0,102350.0,0.005]
[1738154706798,0.963783,102360.0,102350.0,1e-06]
[1738154707288,0.768307,102360.0,102320.0,0.1387603]
[1738154707489,0.556334,102330.0,102320.0,0.24703978]
[1738154708585,0.556334,102330.0,102320.0,0.24903978]
[1738154709396,0.556334,102330.0,102320.0,0.25303978]
[1738154709989,0.556334,102330.0,102320.0,0.24903978]
[1738154710191,0.556334,102330.0,102320.0,0.25003978]
[1738154712998,0.56656312,102330.0,102320.0,0.25003978]
[1738154716207,0.56656312,102330.0,102320.0,0.24613253]
[1738154717703,0.56656312,102330.0,102320.0,0.33785305]
[1738154718206,0.56656312,102330.0,102320.0,0.53340605]
[1738154719808,0.3608,102330.0,102320.0,0.53340605]
[1738154722711,0.5668048,102340.0,102330.0,0.195534]
[1738154722897,0.5668048,102340.0,102330.0,0.57125452]
[1738154723808,0.5668048,102340.0,102330.0,0.66297504]
[1738154724116,0.36094613,102340.0,102330.0,0.66297504]
[1738154724306,0.00014613,102340.0,102330.0,1.02377504]
[1738154724509,0.08694513,102350.0,102340.0,0.195514]
[1738154724711,0.08694513,102350.0,102340.0,0.52823452]
[1738154725009,0.08694513,102350.0,102340.0,0.99901206]
[1738154725308,0.26083541,102360.0,102350.0,0.195495]
[1738154725611,0.26083541,102360.0,102350.0,0.83801552]
[1738154726517,0.26083541,102360.0,102350.0,0.84101552]
[1738154726909,0.26083541,102360.0,102350.0,0.84201552]
[1738154727613,0.26083541,102360.0,102350.0,0.83810817]
[1738154727817,0.26083541,102360.0,102350.0,0.88460817]
[1738154728409,0.26083541,102360.0,102350.0,0.93370817]
[1738154729101,0.20572775,102370.0,102360.0,0.195476]
[1738154729303,0.20572775,102370.0,102360.0,0.47719652]
[1738154729503,0.00014613,102370.0,102360.0,0.56891704]
[1738154730110,0.19560313,102370.0,102360.0,0.47719652]
[1738154733316,0.00014613,102370.0,102360.0,0.47719652]
[1738154733815,0.00014613,102370.0,102360.0,0.56891704]
[1738154734020,0.00014613,102370.0,102360.0,0.66660668]
[1738154735412,0.01028388,102380.0,102370.0,0.195457]
[1738154735608,0.556227,102390.0,102370.0,0.41662052]
[1738154735811,0.556227,102390.0,102380.0,0.28715852]
[1738154736015,0.195427,102390.0,102380.0,0.49715852]
[1738154736507,0.195427,102390.0,102380.0,0.49325127]
[1738154736915,0.201427,102390.0,102380.0,0.49325127]
[1738154737509,0.006,102390.0,102380.0,0.58497179]
[1738154737709,0.006,102390.0,102380.0,0.49715852]
[1738154738916,0.006,102390.0,102380.0,0.58887904]
[1738154739121,0.008,102390.0,102380.0,0.63807904]
[1738154739913,0.008,102390.0,102380.0,0.54635852]
[1738154740418,0.564219,102390.0,102380.0,0.405438]
[1738154740613,0.611319,102390.0,102380.0,0.49715852]
[1738154741123,0.203419,102390.0,102380.0,0.49715852]
[1738154741623,0.564219,102390.0,102380.0,0.49715852]
[1738154742018,0.610219,102390.0,102380.0,0.49715852]
[1738154743319,0.249419,102390.0,102380.0,0.49715852]
[1738154743623,0.008,102390.0,102380.0,0.49715852]
[1738154744923,0.008,102390.0,102380.0,0.54665852]
[1738154747430,0.203419,102390.0,102380.0,0.54665852]
[1738154747926,0.008,102390.0,102380.0,0.54665852]
[1738154749225,0.008,102390.0,102380.0,0.54275117]
[1738154754623,0.008,102390.0,102380.0,0.55743117]
[1738154754920,0.008,102390.0,102380.0,1.02933845]
[1738154756026,0.004,102390.0,102380.0,1.1309618]
[1738154756921,0.004,102390.0,102380.0,1.12705455]
[1738154758023,0.004,102390.0,102380.0,1.26052514]
[1738154758529,0.004,102390.0,102380.0,1.27052514]
[1738154766838,0.004,102390.0,102380.0,1.28068675]
[1738154767041,0.004,102390.0,102380.0,1.37240727]
[1738154769237,0.001,102390.0,102380.0,1.37240727]
[1738154769628,0.21607298,102400.0,102380.0,1.17696927]
[1738154769832,0.21607298,102400.0,102390.0,0.83115269]
[1738154770030,0.21607298,102400.0,102390.0,1.06695273]
[1738154770740,0.10414613,102400.0,102390.0,1.06695273]
[1738154771239,0.10414613,102400.0,102390.0,1.07086008]
[1738154772527,0.10314613,102400.0,102390.0,1.07086008]
[1738154772730,0.10414613,102400.0,102390.0,1.07086008]
[1738154772926,0.29954613,102400.0,102390.0,0.61833956]
[1738154773329,0.10414613,102400.0,102390.0,0.61833956]
[1738154778034,0.10414613,102400.0,102390.0,0.52661904]
[1738154778339,0.10414613,102400.0,102390.0,0.61833956]
[1738154779834,0.29954613,102400.0,102390.0,0.61833956]
[1738154780041,0.66034613,102400.0,102390.0,0.395419]
[1738154780547,0.66034613,102400.0,102390.0,0.48713952]
[1738154782148,0.77627298,102400.0,102390.0,0.48713952]
[1738154784238,0.41547298,102400.0,102390.0,0.48713952]
[1738154785646,0.77627298,102400.0,102390.0,0.58693952]
[1738154785950,0.41547298,102400.0,102390.0,0.58693952]
[1738154786850,0.77627298,102400.0,102390.0,0.58693952]
[1738154787852,0.66034613,102400.0,102390.0,0.58693952]
[1738154789456,0.66034613,102400.0,102390.0,0.62355707]
[1738154790145,0.66034613,102400.0,102390.0,0.61964972]
[1738154791051,0.46494613,102400.0,102390.0,0.71137024]
[1738154791258,0.10414613,102400.0,102390.0,0.71137024]
[1738154791454,0.22007298,102400.0,102390.0,0.71137024]
[1738154792558,0.77627298,102400.0,102390.0,0.61964972]
[1738154792763,0.8669935,102400.0,102390.0,0.33641755]
[1738154792949,0.8669935,102400.0,102390.0,0.2998]
[1738154793146,0.8669935,102400.0,102390.0,0.495219]
[1738154793557,0.8639935,102400.0,102390.0,0.495219]
[1738154793962,0.8639935,102400.0,102390.0,0.496219]
[1738154794263,0.8639935,102400.0,102390.0,0.20085387]
[1738154794453,1.31663402,102400.0,102390.0,0.12335387]
[1738154794649,1.31663402,102400.0,102370.0,0.00014613]
[1738154794650,1.12123402,102400.0,102370.0,0.00014613]
[1738154794851,0.64795852,102380.0,102370.0,0.21014613]
[1738154796952,0.64795852,102380.0,102370.0,0.21114613]
[1738154797570,0.64995852,102380.0,102370.0,0.21014613]
[1738154798063,0.76588537,102380.0,102370.0,0.21014613]
[1738154798267,0.76588537,102380.0,102370.0,0.20623888]
[1738154800772,0.77594986,102380.0,102370.0,0.20623888]
[1738154803267,0.68422934,102380.0,102370.0,0.5441164]
[1738154803565,0.11792685,102380.0,102370.0,0.5441164]
[1738154803759,0.11792685,102380.0,102370.0,0.9049164]
[1738154803958,0.11792685,102380.0,102370.0,0.5441164]
[1738154804469,0.14690856,102380.0,102370.0,0.5441164]
[1738154807179,0.002,102380.0,102370.0,0.5441164]
[1738154809373,0.67454499,102380.0,102370.0,0.45239588]
[1738154809571,0.76626551,102380.0,102370.0,0.45239588]
[1738154809874,0.76626551,102380.0,102370.0,0.20623888]
[1738154810380,0.76626551,102380.0,102370.0,0.20233153]
[1738154810871,0.67454499,102380.0,102370.0,0.20233153]
[1738154812572,0.73240396,102380.0,102370.0,0.20233153]
[1738154813479,0.73240396,102380.0,102370.0,0.05572623]
[1738154814379,0.82412448,102380.0,102370.0,0.05572623]
[1738154819078,0.82412448,102380.0,102370.0,0.05181898]
[1738154819883,0.82212448,102380.0,102370.0,0.05381898]
[1738154820980,0.73040396,102380.0,102370.0,0.05381898]
[1738154821481,0.73040396,102380.0,102370.0,0.1455395]
[1738154821677,0.73040396,102380.0,102370.0,0.3409965]
[1738154821882,0.17416596,102380.0,102370.0,0.3409965]
[1738154822977,0.17416596,102380.0,102370.0,0.7017965]
[1738154823176,0.17416596,102380.0,102370.0,0.37754791]
[1738154825081,0.17416596,102380.0,102370.0,0.7017965]
[1738154825283,0.17416596,102380.0,102370.0,0.73835875]
[1738154825481,0.31975348,102380.0,102370.0,0.73835875]
[1738154826274,0.31975348,102380.0,102370.0,0.37755875]
[1738154826480,0.31975348,102380.0,102370.0,0.7017965]
[1738154826896,0.31975348,102380.0,102370.0,0.73837024]
[1738154828277,0.11642257,102380.0,102370.0,0.54291324]
[1738154828478,0.11642257,102380.0,102370.0,0.73837024]
[1738154828985,0.14558752,102390.0,102380.0,0.195438]
[1738154829282,0.14558752,102390.0,102380.0,0.94583226]
[1738154830681,0.14558752,102390.0,102380.0,1.05182297]
[1738154830881,0.24573365,102400.0,102380.0,0.95505552]
[1738154831186,0.24573365,102400.0,102390.0,0.73966004]
[1738154831371,0.24573365,102400.0,102390.0,0.92575269]
[1738154831779,0.24573365,102400.0,102390.0,0.47323217]
[1738154831993,0.24573365,102400.0,102390.0,0.56495269]
[1738154832185,0.24573365,102400.0,102390.0,0.57283217]
[1738154832573,0.24573365,102400.0,102390.0,0.93363217]
[1738154832880,0.24573365,102400.0,102390.0,1.02535269]
[1738154833389,0.10014613,102400.0,102390.0,1.02535269]
[1738154839889,0.10014613,102400.0,102390.0,1.02144544]
[1738154840091,0.10014613,102400.0,102390.0,0.92972492]
[1738154840495,0.10014613,102400.0,102390.0,1.02144544]
[1738154842195,0.10014613,102400.0,102390.0,0.66064544]
[1738154842595,0.10014613,102400.0,102390.0,1.02144544]
[1738154843698,0.10014613,102400.0,102390.0,1.12673028]
[1738154845397,0.92362248,102420.0,102410.0,0.195381]
[1738154845596,0.92362248,102420.0,102410.0,0.48710152]
[1738154846394,0.77803496,102420.0,102410.0,0.48710152]
[1738154846597,0.78003496,102420.0,102410.0,0.48710152]
[1738154846993,0.78603496,102420.0,102410.0,0.48810152]
[1738154848203,0.79608227,102420.0,102410.0,0.48810152]
[1738154849412,0.94150003,102420.0,102410.0,0.48810152]
[1738154851806,0.94150003,102420.0,102410.0,0.48419417]
[1738154856609,0.94150003,102420.0,102410.0,0.45255083]
[1738154857106,0.58070003,102420.0,102410.0,0.45255083]
[1738154857909,0.33763103,102420.0,102410.0,0.51262801]
[1738154858114,0.33763103,102420.0,102410.0,0.56372801]
[1738154858310,0.33763103,102420.0,102410.0,0.60029499]
[1738154858503,0.33763103,102420.0,102410.0,0.50365083]
[1738154858905,0.19221327,102420.0,102410.0,0.50365083]
[1738154859105,0.19221327,102420.0,102410.0,0.54021786]
[1738154859916,0.19221327,102420.0,102410.0,0.53631061]
[1738154861011,0.18216596,102420.0,102410.0,0.53631061]
[1738154861518,0.18216596,102420.0,102410.0,0.95718779]
[1738154861717,0.18216596,102420.0,102410.0,1.10923835]
[1738154861916,0.18216596,102420.0,102410.0,1.20688029]
[1738154862420,0.18116596,102420.0,102410.0,1.20688029]
[1738154863318,0.17816596,102420.0,102410.0,1.20588029]
[1738154864311,0.37352796,102420.0,102410.0,1.16471835]
[1738154865215,0.28676896,102420.0,102410.0,1.16471835]
[1738154865915,0.28576896,102420.0,102410.0,1.16571835]
[1738154866423,0.28276896,102420.0,102410.0,1.16871835]
[1738154869925,0.28276896,102420.0,102410.0,1.16759835]
[1738154870125,0.64356896,102420.0,102410.0,0.41832774]
[1738154870327,0.64356896,102420.0,102410.0,0.26407718]
[1738154870523,0.69426896,102420.0,102410.0,0.26407718]
[1738154870717,0.33346896,102420.0,102410.0,0.26407718]
[1738154871022,0.75434614,102420.0,102410.0,0.26407718]
[1738154871226,0.75434614,102420.0,102410.0,0.204]
[1738154871629,0.76450583,102420.0,102410.0,0.204]
[1738154872031,0.76450583,102420.0,102410.0,0.20009265]
[1738154872329,0.76450583,102420.0,102410.0,0.26016983]
[1738154872531,0.70442865,102420.0,102410.0,0.20009265]
[1738154873432,0.88276866,102420.0,102410.0,0.20009265]
[1738154873629,0.79118765,102420.0,102410.0,0.20009265]
[1738154874023,0.88276866,102420.0,102410.0,0.20009265]
[1738154874222,0.79118765,102420.0,102410.0,0.20009265]
[1738154876733,0.88276866,102420.0,102410.0,0.20009265]
[1738154876934,0.79118765,102420.0,102410.0,0.20009265]
[1738154877735,0.61702169,102420.0,102410.0,0.20009265]
[1738154879441,0.7086027,102420.0,102410.0,0.20009265]
[1738154879733,0.88334903,102420.0,102410.0,0.20009265]
[1738154880335,0.88334903,102420.0,102410.0,0.1961854]
[1738154881331,0.77956804,102420.0,102410.0,0.02]
[1738154881634,0.195419,102390.0,102380.0,0.05326485]
[1738154881838,0.917019,102390.0,102380.0,0.16326485]
[1738154882026,0.917019,102390.0,102380.0,0.25484586]
[1738154882433,0.917019,102390.0,102380.0,0.45028386]
[1738154882937,0.917019,102390.0,102380.0,0.45128386]
[1738154883142,0.917019,102390.0,102380.0,0.45228386]
[1738154884540,1.06246699,102390.0,102380.0,0.45228386]
[1738154885635,1.06246699,102390.0,102380.0,0.45081901]
[1738154887139,0.917019,102390.0,102380.0,0.45081901]
[1738154889940,1.01834922,102390.0,102380.0,0.1638]
[1738154890135,1.06794922,102390.0,102380.0,0.1638]
[1738154890340,0.97636821,102390.0,102380.0,0.1638]
[1738154891747,1.06794922,102390.0,102380.0,0.112]
[1738154891954,1.11834922,102390.0,102380.0,0.112]
[1738154892445,1.23449809,102390.0,102380.0,0.112]
[1738154892841,1.23449809,102390.0,102380.0,0.10809265]
[1738154893232,1.23449809,102390.0,102380.0,0.08018905]
[1738154893435,1.3260791,102390.0,102380.0,0.08018905]
[1738154893640,1.3260791,102390.0,102380.0,0.002]
[1738154894245,1.3260791,102390.0,102370.0,0.00014613]
[1738154894246,0.195434,102380.0,102370.0,0.00014613]
[1738154894466,0.69761501,102380.0,102370.0,0.06014613]
[1738154894949,0.69761501,102380.0,102370.0,0.00014613]
[1738154895551,0.195453,102370.0,102360.0,0.00747]
[1738154895753,0.74303401,102370.0,102360.0,0.05747]
[1738154897655,0.74503401,102370.0,102360.0,0.00747]
[1738154898053,0.74603401,102370.0,102360.0,0.00747]
[1738154899949,0.607553,102370.0,102360.0,0.30905101]
[1738154900248,0.70433552,102370.0,102360.0,0.26677]
[1738154900749,0.70433552,102370.0,102360.0,0.26286275]
[1738154901454,0.79591653,102370.0,102360.0,0.26286275]
[1738154902255,0.91199747,102370.0,102360.0,0.26286275]
[1738154902742,0.9220323,102370.0,102360.0,0.26286275]
[1738154904459,0.80595136,102370.0,102360.0,0.26286275]
[1738154905359,0.80595136,102370.0,102360.0,0.21356275]
[1738154906050,2.30595136,102370.0,102360.0,0.21356275]
[1738154906361,2.39753237,102370.0,102360.0,7.5e-07]
[1738154907045,2.30595136,102370.0,102360.0,7.5e-07]
[1738154907250,2.39753237,102370.0,102360.0,7.5e-07]
[1738154907452,2.30595136,102370.0,102360.0,7.5e-07]
[1738154907750,0.195471,102360.0,102350.0,0.09180488]
[1738154907955,0.556271,102360.0,102350.0,0.26842387]
[1738154908263,0.64785201,102360.0,102350.0,0.26842387]
[1738154908453,0.64785201,102360.0,102350.0,0.22022387]
[1738154908761,0.64785201,102360.0,102350.0,0.22018387]
[1738154909754,0.64993126,102360.0,102350.0,0.22018387]
[1738154910050,0.82414435,102360.0,102350.0,0.22018387]
[1738154910250,0.82214435,102360.0,102350.0,0.22018387]
[1738154912561,0.64793126,102360.0,102350.0,0.22018387]
[1738154913460,0.55635025,102360.0,102350.0,0.21627652]
[1738154914069,0.64793126,102360.0,102350.0,0.21627652]
[1738154917468,0.64793126,102360.0,102350.0,0.41176652]
[1738154918266,0.64793126,102360.0,102350.0,0.86414753]
[1738154918267,7.925e-05,102360.0,102350.0,0.86414753]
[1738154918471,7.925e-05,102360.0,102350.0,0.95572854]
[1738154918664,7.925e-05,102360.0,102350.0,1.00458578]
[1738154920668,0.00207925,102360.0,102350.0,1.00458578]
[1738154921167,0.00207925,102360.0,102350.0,1.00067853]
[1738154923078,0.14751496,102360.0,102350.0,1.00067853]
[1738154924882,0.26388097,102360.0,102350.0,1.00067853]
[1738154925374,0.26382097,102360.0,102350.0,1.00067853]
[1738154926977,0.20563405,102360.0,102350.0,1.00067853]
[1738154928882,0.08926804,102360.0,102350.0,1.00067853]
[1738154930684,0.28473904,102360.0,102350.0,0.53594843]
[1738154930874,0.28473904,102360.0,102350.0,0.89674843]
[1738154931075,0.08926804,102360.0,102350.0,0.89674843]
[1738154931384,0.08926804,102360.0,102350.0,1.0054686]
[1738154933887,0.08926804,102360.0,102350.0,1.00156125]
[1738154934779,0.08926804,102360.0,102350.0,1.01624125]
[1738154936891,0.28473904,102360.0,102350.0,1.01624125]
[1738154939691,0.64553904,102360.0,102350.0,0.54918024]
[1738154939895,0.64553904,102360.0,102350.0,0.24497007]
[1738154940095,0.79453904,102360.0,102350.0,0.24497007]
[1738154940691,0.80442281,102360.0,102350.0,0.24497007]
[1738154941594,0.80442281,102360.0,102350.0,0.24106282]
[1738154942291,0.80442281,102360.0,102350.0,0.20455467]
[1738154945501,1.03713258,102360.0,102350.0,0.20455467]
[1738154948602,0.89169687,102360.0,102350.0,0.20455467]
[1738154949495,0.98327788,102360.0,102350.0,0.20455467]
[1738154950001,0.89169687,102360.0,102350.0,0.20455467]
[1738154951708,0.89169687,102360.0,102350.0,0.40004467]
[1738154953806,1.0371129,102360.0,102350.0,0.40004467]
[1738154958409,0.8881129,102360.0,102350.0,0.49162568]
[1738154959111,0.74269687,102360.0,102350.0,0.40004467]
[1738154961413,0.74269687,102360.0,102350.0,0.20455467]
[1738154961910,0.79359687,102360.0,102350.0,0.20455467]
[1738154962406,0.88517788,102360.0,102350.0,0.20455467]
[1738154962612,0.93467788,102360.0,102350.0,0.20455467]
[1738154962811,0.98297788,102360.0,102350.0,0.20455467]
[1738154963013,2.48297788,102360.0,102350.0,0.20455467]
[1738154964210,0.98297788,102360.0,102350.0,0.20455467]
[1738154965109,0.89139687,102360.0,102350.0,0.20455467]
[1738154965613,0.71687402,102360.0,102350.0,0.20455467]
[1738154966822,0.71687402,102360.0,102350.0,0.05791901]
[1738154967319,0.80845503,102360.0,102350.0,0.05791901]
[1738154968119,1.06245625,102360.0,102350.0,0.05791901]
[1738154970816,0.80845503,102360.0,102350.0,0.05791901]
[1738154971114,0.80645503,102360.0,102350.0,0.05891901]
[1738154971313,0.80643578,102360.0,102350.0,0.05891901]
[1738154971805,0.80643578,102360.0,102350.0,0.05791901]
[1738154974010,0.80649277,102360.0,102350.0,0.05791901]
[1738154974209,0.80643578,102360.0,102350.0,0.05791901]
[1738154974413,0.80649277,102360.0,102350.0,0.05791901]
[1738154974617,0.80643578,102360.0,102350.0,0.05791901]
[1738154975217,0.89801679,102360.0,102350.0,0.05791901]
[1738154975617,0.195497,102340.0,102330.0,0.0516]
[1738154975811,0.556297,102340.0,102330.0,0.35318101]
[1738154976011,0.55635399,102340.0,102330.0,0.54869701]
[1738154977011,0.55635399,102340.0,102330.0,0.55069701]
[1738154979124,0.70198296,102340.0,102330.0,0.55069701]
[1738154980123,0.70198296,102340.0,102330.0,0.459116]
[1738154981621,0.34118296,102340.0,102330.0,0.58730588]
[1738154983327,0.35127963,102340.0,102330.0,0.58730588]
[1738154983731,0.35127963,102340.0,102330.0,0.49572487]
[1738154987632,0.15578263,102340.0,102330.0,0.58730588]
[1738154987838,0.14568596,102340.0,102330.0,0.95810588]
[1738154989637,0.20392299,102340.0,102330.0,0.95810588]
[1738154990136,0.1457751,102350.0,102340.0,0.195495]
[1738154990340,0.1457751,102350.0,102340.0,1.05476488]